bitfinex-derivatives/quotes_BTCF0:USTF0_20250505
["timestamp","ask_amount","ask_price","bid_price","bid_amount"]
[1746455932233,0.005,94023.0,94022.0,0.387526]
[1746455932433,0.003,94023.0,94022.0,0.387526]
[1746455932938,0.003,94023.0,94022.0,0.40360405]
[1746455933146,0.001,94026.0,94025.0,0.21272]
[1746455934139,0.001,94026.0,94025.0,0.33272]
[1746455935741,0.001,94026.0,94025.0,0.33372]
[1746455938144,0.001,94026.0,94025.0,0.21372]
[1746455939044,0.001,94026.0,94025.0,0.27272]
[1746455942647,0.2137177,94026.0,94025.0,0.32842]
[1746455942832,0.001,94026.0,94025.0,0.32842]
[1746455943240,0.0015,94030.0,94029.0,0.2127109]
[1746455943438,0.001596,94040.0,94039.0,0.2126883]
[1746455944543,0.004596,94040.0,94039.0,0.3252883]
[1746455946047,0.006596,94040.0,94039.0,0.3252883]
[1746455946441,0.2136499,94056.0,94055.0,0.2126521]
[1746455946945,0.001,94056.0,94055.0,0.2126521]
[1746455947145,0.2136499,94056.0,94055.0,0.2126521]
[1746455947350,0.2714499,94056.0,94055.0,0.3273521]
[1746455948454,0.2764499,94056.0,94055.0,0.3273521]
[1746455949153,0.2804499,94056.0,94055.0,0.3273521]
[1746455950257,0.0678,94056.0,94055.0,0.3273521]
[1746455950447,0.0678,94056.0,94055.0,0.34591334]
[1746455950648,0.2804499,94056.0,94055.0,0.34591334]
[1746455951259,0.01,94056.0,94055.0,0.34591334]
[1746455951450,0.3608,94080.0,94071.0,0.212616]
[1746455951451,0.20930123,94072.0,94071.0,0.212616]
[1746455951761,0.0598,94085.0,94074.0,0.2126092]
[1746455951959,0.0563,94084.0,94083.0,0.2125888]
[1746455952150,0.17098,94100.0,94085.0,0.2125843]
[1746455952151,0.0563,94093.0,94085.0,0.2125843]
[1746455952653,0.0563,94098.0,94085.0,0.2125843]
[1746455952856,0.48400144,94086.0,94085.0,0.2125843]
[1746455953060,0.2125866,94084.0,94083.0,0.5733888]
[1746455953353,0.2125866,94084.0,94083.0,0.3608]
[1746455953757,0.2688866,94084.0,94083.0,0.3608]
[1746455954055,0.0563,94084.0,94083.0,0.5733888]
[1746455954245,0.27941934,94086.0,94083.0,0.3608]
[1746455954451,0.27941934,94086.0,94085.0,0.2125843]
[1746455954960,0.49400144,94086.0,94085.0,0.2695843]
[1746455955148,0.2235821,94086.0,94085.0,0.2125843]
[1746455955552,0.2215821,94086.0,94085.0,0.2125843]
[1746455955753,0.2125866,94084.0,94083.0,0.3608]
[1746455955955,0.2657579,94079.0,94078.0,0.212594]
[1746455956664,0.3189089,94079.0,94078.0,0.212594]
[1746455957163,0.3857579,94079.0,94078.0,0.212594]
[1746455957763,0.12,94079.0,94078.0,0.212594]
[1746455957964,0.3325979,94079.0,94078.0,0.327694]
[1746455958864,0.1804,94079.0,94078.0,0.327694]
[1746455959164,0.2729979,94079.0,94078.0,0.327694]
[1746455959659,0.0604,94079.0,94077.0,0.3608]
[1746455959865,0.2729001,94078.0,94077.0,0.3608]
[1746455960058,0.3929001,94078.0,94077.0,0.3608]
[1746455960265,0.3929001,94078.0,94077.0,0.5734024]
[1746455960568,0.3929001,94078.0,94077.0,0.3608]
[1746455960749,0.3929001,94078.0,94077.0,0.5734024]
[1746455961960,0.3929001,94078.0,94077.0,0.2126024]
[1746455963167,0.2126182,94070.0,94069.0,0.3262727]
[1746455963756,0.1182,94071.0,94070.0,0.2126182]
[1746455963957,0.330816,94071.0,94070.0,0.2677182]
[1746455965463,0.330816,94071.0,94070.0,0.2687182]
[1746455965958,0.1182,94071.0,94070.0,0.2687182]
[1746455966665,0.1182,94071.0,94070.0,0.2697182]
[1746455968263,0.0563,94085.0,94084.0,0.2125866]
[1746455968463,0.1685,94085.0,94084.0,0.2125866]
[1746455968665,0.2710843,94085.0,94084.0,0.2125866]
[1746455969372,0.3910843,94085.0,94084.0,0.2125866]
[1746455969662,0.1815,94085.0,94084.0,0.2125866]
[1746455969864,0.1786,94085.0,94084.0,0.2125866]
[1746455970065,0.123,94085.0,94084.0,0.2125866]
[1746455970260,0.003,94085.0,94084.0,0.2125866]
[1746455971170,0.001,94085.0,94084.0,0.2125866]
[1746455972460,0.001,94086.0,94085.0,0.2125843]
[1746455972970,0.001,94086.0,94085.0,0.3255843]
[1746455973562,0.001,94086.0,94085.0,0.3265843]
[1746455974271,0.001,94086.0,94085.0,0.3275843]
[1746455975471,0.2135821,94086.0,94085.0,0.2728843]
[1746455975773,0.001,94086.0,94085.0,0.2728843]
[1746455975974,0.2135821,94086.0,94085.0,0.2728843]
[1746455976176,0.3874821,94086.0,94085.0,0.2728843]
[1746455979469,0.3874821,94086.0,94085.0,0.2718843]
[1746455979677,0.3874821,94086.0,94085.0,0.2708843]
[1746455980371,0.7482821,94086.0,94085.0,0.2708843]
[1746455981177,0.1749,94086.0,94085.0,0.2708843]
[1746455981382,0.121,94086.0,94085.0,0.2708843]
[1746455981865,0.3335821,94086.0,94085.0,0.3254843]
[1746455986183,0.3335821,94086.0,94085.0,0.31048429]
[1746455987083,0.2135821,94086.0,94085.0,0.31048429]
[1746455990488,0.001,94086.0,94085.0,0.31048429]
[1746455990986,0.2135821,94086.0,94085.0,0.31048429]
[1746455994289,0.001,94086.0,94085.0,0.31048429]
[1746455994890,0.2135821,94086.0,94085.0,0.31048429]
[1746455996499,0.001,94086.0,94085.0,0.31048429]
[1746455996892,0.2135821,94086.0,94085.0,0.31048429]
[1746456000500,0.001,94086.0,94085.0,0.31048429]
[1746456000699,0.2135821,94086.0,94085.0,0.31048429]
[1746456001098,0.001,94086.0,94085.0,0.31148429]
[1746456001701,0.001,94086.0,94085.0,0.31048429]
[1746456003194,0.001,94086.0,94085.0,0.67128429]
[1746456003395,0.1015,94100.0,94099.0,0.2125527]
[1746456003799,0.3140504,94100.0,94099.0,0.2125527]
[1746456004097,0.2125527,94099.0,94098.0,0.0571]
[1746456004305,0.4206247,94099.0,94098.0,0.0571]
[1746456004493,0.4206247,94099.0,94089.0,0.0593]
[1746456004494,0.212573,94090.0,94089.0,0.2718741]
[1746456004797,0.2125775,94088.0,94087.0,0.00788099]
[1746456004989,0.5733775,94088.0,94087.0,0.22046079]
[1746456005188,0.587084,94088.0,94079.0,0.1133]
[1746456005393,0.5733956,94080.0,94079.0,0.3258901]
[1746456005600,0.5733956,94080.0,94079.0,0.2718901]
[1746456006214,0.7951956,94080.0,94079.0,0.2718901]
[1746456006603,0.7951956,94080.0,94079.0,0.2748901]
[1746456006798,0.7951956,94080.0,94079.0,0.003]
[1746456007012,0.7951956,94080.0,94079.0,0.2155979]
[1746456007404,0.7941956,94080.0,94079.0,0.2155979]
[1746456007911,0.7941956,94080.0,94079.0,0.2165979]
[1746456008513,0.7941956,94080.0,94079.0,0.002]
[1746456008910,0.90048761,94080.0,94079.0,0.002]
[1746456009320,0.90048761,94080.0,94079.0,0.2145979]
[1746456009501,0.7941956,94080.0,94079.0,0.2145979]
[1746456009706,0.7941956,94080.0,94079.0,0.2722979]
[1746456011310,0.7488956,94080.0,94079.0,0.2722979]
[1746456012416,0.7488956,94080.0,94079.0,0.002]
[1746456012817,0.85518761,94080.0,94079.0,0.002]
[1746456013013,0.7488956,94080.0,94079.0,0.002]
[1746456013513,0.85518761,94080.0,94079.0,0.002]
[1746456014122,0.7488956,94080.0,94079.0,0.002]
[1746456014316,0.85518761,94080.0,94079.0,0.002]
[1746456015211,0.7488956,94080.0,94079.0,0.002]
[1746456015716,0.7488956,94080.0,94078.0,0.0571]
[1746456015717,0.0531564,94067.0,94056.0,0.3608]
[1746456015923,0.2126318,94064.0,94063.0,0.2699318]
[1746456016221,0.3326318,94064.0,94063.0,0.3275318]
[1746456016516,0.3913318,94064.0,94063.0,0.3275318]
[1746456016716,0.3913318,94064.0,94063.0,0.1483897]
[1746456017114,0.4451318,94064.0,94063.0,0.1483897]
[1746456017512,0.4451318,94064.0,94063.0,0.0907897]
[1746456017821,0.4451318,94064.0,94063.0,0.0947897]
[1746456018512,0.4451318,94064.0,94063.0,0.0917897]
[1746456018814,0.45314735,94064.0,94063.0,0.0917897]
[1746456019011,0.45314735,94064.0,94063.0,0.003]
[1746456019213,0.45314735,94064.0,94063.0,0.002]
[1746456019616,0.212634,94063.0,94062.0,0.03256453]
[1746456019920,0.2126386,94061.0,94060.0,0.00159484]
[1746456020123,0.3326386,94061.0,94060.0,0.00159484]
[1746456020311,0.3326386,94061.0,94060.0,0.03422515]
[1746456020512,0.3326386,94061.0,94060.0,0.00159484]
[1746456020711,0.3326386,94061.0,94060.0,0.03513282]
[1746456021021,0.3326386,94061.0,94060.0,0.00159484]
[1746456021721,0.3326386,94061.0,94060.0,0.00259484]
[1746456021920,0.3328083,94061.0,94060.0,0.00259484]
[1746456022121,0.3318083,94061.0,94060.0,0.00259484]
[1746456022821,0.3318083,94061.0,94060.0,0.03467923]
[1746456023015,0.3318083,94061.0,94060.0,0.00459484]
[1746456023216,0.3318083,94061.0,94060.0,0.03756717]
[1746456029326,0.3318083,94061.0,94060.0,0.00459484]
[1746456032222,0.3328083,94061.0,94060.0,0.00359484]
[1746456032734,0.3328083,94061.0,94060.0,0.00159484]
[1746456037834,0.3328083,94061.0,94060.0,0.21423564]
[1746456038226,0.2128083,94061.0,94060.0,0.21423564]
[1746456041136,0.2126249,94073.0,94072.0,0.265762]
[1746456041331,0.2042522,94078.0,94077.0,0.2125979]
[1746456041636,0.2125911,94084.0,94083.0,0.2125866]
[1746456041832,0.0015952,94086.0,94085.0,0.2125843]
[1746456042135,0.2141773,94086.0,94085.0,0.2125843]
[1746456042923,0.0015952,94086.0,94085.0,0.2125843]
[1746456043332,0.48299234,94090.0,94089.0,0.2125753]
[1746456044526,0.48299234,94090.0,94089.0,0.3262753]
[1746456045037,0.27041934,94090.0,94089.0,0.3262753]
[1746456045338,0.27141934,94090.0,94089.0,0.3262753]
[1746456045536,0.27241934,94090.0,94089.0,0.3262753]
[1746456045836,0.002,94090.0,94089.0,0.3262753]
[1746456046834,0.002,94090.0,94089.0,0.3844753]
[1746456047028,0.214573,94090.0,94089.0,0.3844753]
[1746456048627,0.214573,94090.0,94089.0,0.1719]
[1746456049038,0.214573,94090.0,94089.0,0.3844753]
[1746456049226,0.214573,94090.0,94089.0,0.1719]
[1746456050034,0.214573,94090.0,94089.0,0.3844753]
[1746456055539,0.002,94090.0,94089.0,0.3844753]
[1746456056138,0.214573,94090.0,94089.0,0.3844753]
[1746456056442,0.4623,94100.0,94097.0,0.2656914]
[1746456056443,0.2125617,94098.0,94097.0,0.2656914]
[1746456057031,0.2125617,94098.0,94097.0,0.3834914]
[1746456057234,0.1015,94100.0,94099.0,0.2125527]
[1746456057839,0.3140504,94100.0,94099.0,0.2125527]
[1746456059142,0.1015,94100.0,94099.0,0.2125527]
[1746456059744,0.14656701,94107.0,94106.0,0.2125369]
[1746456059953,0.09393701,94107.0,94106.0,0.5733369]
[1746456060142,0.2135143,94116.0,94115.0,0.2125166]
[1746456060341,0.2135143,94116.0,94115.0,0.5733166]
[1746456060544,0.001,94116.0,94115.0,0.5733166]
[1746456060742,0.2135143,94116.0,94115.0,0.6851166]
[1746456061343,0.001,94116.0,94115.0,0.6851166]
[1746456062348,0.005,94116.0,94115.0,0.6851166]
[1746456062548,0.005,94116.0,94115.0,0.71414027]
[1746456062949,0.001,94116.0,94115.0,0.71514027]
[1746456063141,0.001,94116.0,94115.0,0.71614027]
[1746456063539,0.00159463,94121.0,94120.0,0.2125053]
[1746456063739,0.00159463,94121.0,94120.0,0.3187533]
[1746456064053,0.21087967,94134.0,94133.0,0.2124737]
[1746456064245,0.21087967,94134.0,94133.0,0.7447737]
[1746456065254,0.0015,94135.0,94134.0,0.2124737]
[1746456065452,0.0015,94135.0,94134.0,0.3291737]
[1746456066650,0.29689233,94144.0,94134.0,0.222932]
[1746456066862,0.29689233,94144.0,94143.0,0.2124533]
[1746456067256,0.001,94146.0,94145.0,0.2124488]
[1746456067459,0.2134466,94146.0,94145.0,0.2124488]
[1746456068259,0.4479466,94146.0,94145.0,0.2124488]
[1746456069055,0.3334466,94146.0,94145.0,0.2124488]
[1746456069758,0.3354466,94146.0,94145.0,0.2124488]
[1746456070655,0.2124533,94143.0,94142.0,0.113]
[1746456070854,0.2124533,94143.0,94142.0,0.2669556]
[1746456071254,0.3324533,94143.0,94142.0,0.2669556]
[1746456071459,0.3875533,94143.0,94142.0,0.2669556]
[1746456071961,0.3885533,94143.0,94142.0,0.2669556]
[1746456072560,0.3895533,94143.0,94142.0,0.2669556]
[1746456073158,0.3895533,94143.0,94142.0,0.0545]
[1746456073354,0.3895533,94143.0,94142.0,0.2124556]
[1746456073853,0.4453533,94143.0,94142.0,0.2124556]
[1746456076260,0.2329,94143.0,94138.0,0.0594]
[1746456076456,0.2655942,94137.0,94136.0,0.2655759]
[1746456077252,0.3855942,94137.0,94136.0,0.2655759]
[1746456077457,0.3324759,94137.0,94136.0,0.2655759]
[1746456078259,0.3905759,94137.0,94136.0,0.2655759]
[1746456082664,0.3905759,94137.0,94136.0,0.3226759]
[1746456082862,0.3905669,94137.0,94136.0,0.3226759]
[1746456087165,0.0531193,94133.0,94112.0,0.3608]
[1746456087372,0.2124872,94128.0,94127.0,0.3260011]
[1746456087564,0.5732872,94128.0,94127.0,0.3260011]
[1746456088073,0.1172,94132.0,94131.0,0.2124804]
[1746456088269,0.0567,94137.0,94135.0,0.2124691]
[1746456088462,0.2124669,94137.0,94136.0,0.2677691]
[1746456089366,0.2681562,94144.0,94143.0,0.2124533]
[1746456090163,0.3881562,94144.0,94143.0,0.2703533]
[1746456090564,0.3881562,94144.0,94143.0,0.6311533]
[1746456090765,0.12,94144.0,94143.0,0.6311533]
[1746456090966,0.3334511,94144.0,94143.0,0.6311533]
[1746456091268,0.2144511,94144.0,94143.0,0.6311533]
[1746456092469,0.002,94144.0,94143.0,0.6311533]
[1746456092668,0.2144511,94144.0,94143.0,0.6311533]
[1746456093566,0.2154511,94144.0,94143.0,0.6311533]
[1746456093975,0.3608,94162.0,94143.0,0.77492]
[1746456094283,0.2360339,94169.0,94168.0,0.2123947]
[1746456094578,0.2360339,94169.0,94168.0,0.5731947]
[1746456094768,0.2907339,94169.0,94168.0,0.5731947]
[1746456095171,0.4107339,94169.0,94168.0,0.5731947]
[1746456095373,0.2124127,94161.0,94160.0,0.3608]
[1746456095975,0.2124127,94161.0,94160.0,0.573215]
[1746456096178,0.3324127,94161.0,94160.0,0.573215]
[1746456096377,0.5056127,94161.0,94160.0,0.38898971]
[1746456097075,0.5066127,94161.0,94160.0,0.38898971]
[1746456097570,0.5066127,94161.0,94160.0,0.60140471]
[1746456097776,0.5076127,94161.0,94160.0,0.60140471]
[1746456098471,0.3939127,94161.0,94160.0,0.60140471]
[1746456098678,0.3344127,94161.0,94160.0,0.60140471]
[1746456100379,0.33458035,94161.0,94160.0,0.60140471]
[1746456101076,0.39008035,94161.0,94160.0,0.60140471]
[1746456102484,0.39008035,94161.0,94160.0,0.38898971]
[1746456102670,0.39008035,94161.0,94160.0,0.02818971]
[1746456102976,0.39008035,94161.0,94138.0,0.3608]
[1746456102977,0.2124511,94145.0,94143.0,0.0555]
[1746456103179,0.0531121,94146.0,94143.0,0.0555]
[1746456103180,0.2124511,94144.0,94143.0,0.0555]
[1746456103374,0.3247511,94144.0,94143.0,0.2679533]
[1746456103877,0.3247511,94144.0,94143.0,0.29685443]
[1746456104178,0.4447511,94144.0,94143.0,0.29885443]
[1746456104375,0.4447511,94144.0,94143.0,0.30085443]
[1746456104579,0.4447511,94144.0,94143.0,0.03290113]
[1746456104765,0.4447511,94144.0,94143.0,0.03090113]
[1746456105276,0.4447511,94144.0,94143.0,0.24335443]
[1746456107578,0.3324511,94144.0,94143.0,0.24335443]
[1746456108377,0.3887511,94144.0,94143.0,0.24335443]
[1746456108882,0.12,94144.0,94143.0,0.24335443]
[1746456109084,0.02812972,94187.0,94143.0,0.24335443]
[1746456109085,0.26568855,94161.0,94160.0,0.212415]
[1746456109383,0.31879225,94161.0,94160.0,0.573215]
[1746456109778,0.00016765,94161.0,94160.0,0.573215]
[1746456110283,0.21458035,94161.0,94160.0,0.573215]
[1746456111083,0.00416765,94161.0,94160.0,0.573215]
[1746456112282,0.21458035,94161.0,94160.0,0.573215]
[1746456112486,0.21458035,94161.0,94160.0,0.632915]
[1746456112679,0.00216765,94161.0,94160.0,0.632915]
[1746456113186,0.21458035,94161.0,94160.0,0.632915]
[1746456113578,0.00016765,94161.0,94160.0,0.688815]
[1746456114287,0.21258035,94161.0,94160.0,0.688815]
[1746456114484,0.00016765,94161.0,94160.0,0.688815]
[1746456114679,0.21258035,94161.0,94160.0,0.688815]
[1746456115488,0.00016765,94161.0,94160.0,0.688815]
[1746456115672,0.21258035,94161.0,94160.0,0.688815]
[1746456117084,0.00016765,94161.0,94160.0,0.688815]
[1746456117589,0.21258035,94161.0,94160.0,0.688815]
[1746456118274,0.00016765,94161.0,94160.0,0.688815]
[1746456118478,0.21258035,94161.0,94160.0,0.688815]
[1746456120788,0.00016765,94161.0,94160.0,0.688815]
[1746456122174,0.03012,94169.0,94168.0,0.2123969]
[1746456122375,0.03012,94169.0,94168.0,0.5731969]
[1746456122584,0.0530966,94173.0,94168.0,0.5731969]
[1746456122585,0.0015,94170.0,94169.0,0.2123947]
[1746456122783,0.0015,94170.0,94169.0,0.3331947]
[1746456123890,0.001,94176.0,94175.0,0.2123812]
[1746456124482,0.24337747,94187.0,94186.0,0.2123564]
[1746456124682,0.24337747,94187.0,94186.0,0.5731564]
[1746456125282,0.24337747,94187.0,94186.0,0.6882564]
[1746456125893,0.24537747,94187.0,94186.0,0.6882564]
[1746456127187,0.01592,94194.0,94189.0,0.2123496]
[1746456127384,0.31609637,94200.0,94199.0,0.212327]
[1746456127385,0.28703865,94200.0,94199.0,0.212327]
[1746456127692,0.28703865,94200.0,94199.0,0.642007]
[1746456128294,0.40703865,94200.0,94199.0,0.755007]
[1746456128992,0.40803865,94200.0,94199.0,0.755007]
[1746456129589,0.40803865,94200.0,94199.0,0.77978328]
[1746456130591,0.19194228,94200.0,94199.0,0.77978328]
[1746456132900,0.40426708,94200.0,94199.0,0.77978328]
[1746456133196,0.19194228,94200.0,94199.0,0.77978328]
[1746456133397,0.40426708,94200.0,94199.0,0.77978328]
[1746456134200,0.40426708,94200.0,94199.0,0.71090328]
[1746456134396,0.46436708,94200.0,94199.0,0.71090328]
[1746456135298,0.46436708,94200.0,94199.0,0.65440328]
[1746456136298,0.46436708,94200.0,94199.0,0.38557628]
[1746456136500,0.46436708,94200.0,94199.0,0.59790328]
[1746456138394,0.46436708,94200.0,94199.0,0.38557628]
[1746456138594,0.46436708,94200.0,94199.0,0.59790328]
[1746456140503,0.25204228,94200.0,94199.0,0.59790328]
[1746456141095,0.25204228,94200.0,94199.0,0.65320328]
[1746456141503,0.19194228,94200.0,94199.0,0.65320328]
[1746456142095,0.24994228,94200.0,94199.0,0.65320328]
[1746456146403,0.46226708,94200.0,94199.0,0.65320328]
[1746456146613,0.52036708,94200.0,94199.0,0.65320328]
[1746456147103,0.30804228,94200.0,94199.0,0.65320328]
[1746456148011,0.25004228,94200.0,94199.0,0.65320328]
[1746456148210,0.19194228,94200.0,94199.0,0.65320328]
[1746456148905,0.19094228,94200.0,94199.0,0.65320328]
[1746456149301,0.19094228,94200.0,94199.0,0.65420328]
[1746456150110,0.19094228,94200.0,94199.0,0.65620328]
[1746456158517,0.40326708,94200.0,94199.0,0.65620328]
[1746456159714,0.46066708,94200.0,94199.0,0.65620328]
[1746456160812,0.81682308,94200.0,94199.0,0.003]
[1746456161119,1.17762308,94200.0,94199.0,0.003]
[1746456161414,0.92762308,94200.0,94199.0,0.003]
[1746456162011,0.92762308,94200.0,94199.0,0.215327]
[1746456164913,0.92762308,94200.0,94199.0,0.003]
[1746456165319,0.2123496,94189.0,94188.0,0.3792133]
[1746456165810,0.2123496,94189.0,94188.0,0.3261255]
[1746456166005,0.2123496,94189.0,94188.0,0.2123377]
[1746456166214,0.3323496,94189.0,94188.0,0.23761256]
[1746456166514,0.4520496,94189.0,94188.0,0.23761256]
[1746456166816,0.4520496,94189.0,94188.0,0.23961256]
[1746456168219,0.4520496,94189.0,94188.0,0.24161256]
[1746456168817,0.4520496,94189.0,94188.0,0.02927486]
[1746456169211,0.4520496,94189.0,94188.0,0.08857486]
[1746456169413,0.4520496,94189.0,94188.0,0.30092666]
[1746456170119,0.345872,94189.0,94162.0,0.0531024]
[1746456170414,0.2123992,94167.0,94166.0,0.23845213]
[1746456170613,0.2123992,94167.0,94166.0,0.21399451]
[1746456170813,0.2123992,94167.0,94166.0,0.00159301]
[1746456171221,0.3323992,94167.0,94166.0,0.23866824]
[1746456171519,0.3323992,94167.0,94166.0,0.00159301]
[1746456171914,0.4489992,94167.0,94166.0,0.02644807]
[1746456172107,0.4489992,94167.0,94166.0,0.00159301]
[1746456172512,0.1062012,94166.0,94165.0,0.02431106]
[1746456172713,0.2655237,94160.0,94159.0,0.2124156]
[1746456173120,0.5021237,94160.0,94159.0,0.2124156]
[1746456173522,0.2655293,94158.0,94157.0,0.212421]
[1746456173722,0.212424,94156.0,94155.0,0.2675253]
[1746456173920,0.212424,94156.0,94155.0,0.0551]
[1746456174122,0.2124308,94153.0,94147.0,0.0606]
[1746456174433,0.2124308,94153.0,94151.0,0.2124343]
[1746456174616,0.2124308,94153.0,94145.0,0.36186219]
[1746456175009,0.2124421,94148.0,94147.0,0.1891934]
[1746456175419,0.2124443,94147.0,94146.0,0.058]
[1746456175623,0.2718443,94147.0,94146.0,0.058]
[1746456175819,0.2718443,94147.0,94146.0,0.2704466]
[1746456176123,0.3918443,94147.0,94146.0,0.058]
[1746456176516,0.3918443,94147.0,94146.0,0.2714466]
[1746456176914,0.3918443,94147.0,94146.0,0.059]
[1746456177121,0.3918443,94147.0,94146.0,0.001]
[1746456177517,0.3918443,94147.0,94146.0,0.002]
[1746456178323,0.3928443,94147.0,94146.0,0.001]
[1746456178722,0.2124466,94146.0,94145.0,0.00106219]
[1746456178926,0.43456661,94146.0,94145.0,0.00106219]
[1746456179121,0.55456661,94146.0,94145.0,0.00106219]
[1746456180322,0.55956661,94146.0,94145.0,0.00106219]
[1746456180521,0.2124804,94131.0,94130.0,0.00159361]
[1746456181224,0.2124804,94131.0,94124.0,0.4139239]
[1746456181225,0.212494,94125.0,94124.0,0.6264087]
[1746456181423,0.212494,94125.0,94124.0,0.64786236]
[1746456182023,0.212494,94125.0,94124.0,0.28706236]
[1746456182224,0.332494,94125.0,94124.0,0.28706236]
[1746456182827,0.332494,94125.0,94124.0,0.28906236]
[1746456183125,0.332494,94125.0,94124.0,0.02345366]
[1746456183324,0.332494,94125.0,94124.0,0.23594986]
[1746456183525,0.331494,94125.0,94124.0,0.02345366]
[1746456183725,0.331494,94125.0,94124.0,0.23594986]
[1746456184119,0.331494,94125.0,94124.0,0.23794986]
[1746456184320,0.331494,94125.0,94124.0,0.29744986]
[1746456184626,0.333494,94125.0,94124.0,0.29544986]
[1746456185426,0.333494,94125.0,94124.0,0.29344986]
[1746456185623,0.335494,94125.0,94124.0,0.29344986]
[1746456185823,0.336494,94125.0,94124.0,0.29344986]
[1746456186333,0.124,94125.0,94124.0,0.29344986]
[1746456186528,0.336494,94125.0,94124.0,0.29344986]
[1746456187233,0.124,94125.0,94124.0,0.29344986]
[1746456187536,0.336494,94125.0,94124.0,0.29344986]
[1746456187836,0.334494,94125.0,94124.0,0.29344986]
[1746456188135,0.336494,94125.0,94124.0,0.29344986]
[1746456188733,0.336494,94125.0,94124.0,0.34844986]
[1746456192631,0.336494,94125.0,94124.0,0.13595366]
[1746456192845,0.336494,94125.0,94124.0,0.0595]
[1746456193227,0.451894,94125.0,94124.0,0.0595]
[1746456197443,0.336494,94125.0,94124.0,0.2719962]
[1746456197633,0.336494,94125.0,94124.0,0.3848962]
[1746456198541,0.124,94125.0,94124.0,0.4535762]
[1746456198744,0.053121,94130.0,94124.0,0.4535762]
[1746456198745,0.05470203,94153.0,94124.0,0.597324]
[1746456198933,0.2124425,94151.0,94150.0,0.3186506]
[1746456199132,0.2124425,94151.0,94150.0,0.3342218]
[1746456199538,0.2124425,94151.0,94150.0,0.281113]
[1746456199743,0.2124425,94151.0,94150.0,0.2811175]
[1746456200140,0.3324425,94151.0,94150.0,0.2811175]
[1746456200648,0.12,94151.0,94150.0,0.3360175]
[1746456201048,0.3324353,94151.0,94150.0,0.3360175]
[1746456201250,0.12,94151.0,94150.0,0.3360175]
[1746456201741,0.12,94151.0,94150.0,0.6922295]
[1746456201945,0.123,94151.0,94150.0,0.6922295]
[1746456202144,0.003,94151.0,94150.0,0.6922295]
[1746456202347,0.003,94151.0,94150.0,0.4422295]
[1746456202537,0.003,94151.0,94150.0,0.3360175]
[1746456202734,0.00159433,94153.0,94152.0,0.212433]
[1746456204846,0.00359433,94153.0,94152.0,0.212433]
[1746456205539,0.00659433,94153.0,94152.0,0.280993]
[1746456205954,0.00659433,94153.0,94150.0,0.0549]
[1746456206246,0.39213333,94153.0,94152.0,0.280993]
[1746456206646,0.39213333,94153.0,94152.0,0.272633]
[1746456206840,0.39213333,94153.0,94152.0,0.341193]
[1746456207035,0.39113333,94153.0,94152.0,0.341193]
[1746456207240,0.39113333,94153.0,94152.0,0.272633]
[1746456207442,0.39113333,94153.0,94152.0,0.12876]
[1746456207640,0.39113333,94153.0,94152.0,0.272633]
[1746456207840,0.39113333,94153.0,94152.0,0.341193]
[1746456208242,0.39013333,94153.0,94152.0,0.341193]
[1746456208542,0.38813333,94153.0,94152.0,0.341193]
[1746456208744,0.38913333,94153.0,94152.0,0.341193]
[1746456208945,0.39013333,94153.0,94152.0,0.341193]
[1746456209250,0.33702513,94153.0,94152.0,0.341193]
[1746456212350,0.33802513,94153.0,94152.0,0.341193]
[1746456213146,0.12559433,94153.0,94152.0,0.341193]
[1746456213853,0.12559433,94153.0,94152.0,0.272633]
[1746456214043,0.12559433,94153.0,94152.0,0.341193]
[1746456214250,0.00559433,94153.0,94152.0,0.341193]
[1746456214647,0.00359433,94153.0,94152.0,0.341193]
[1746456214853,0.00559433,94153.0,94152.0,0.341193]
[1746456215653,0.00459433,94153.0,94152.0,0.341193]
[1746456216148,0.12459433,94153.0,94152.0,0.341193]
[1746456217546,0.12459433,94153.0,94152.0,0.447405]
[1746456217752,0.2654957,94169.0,94168.0,0.2123947]
[1746456217947,0.2654957,94169.0,94168.0,0.6907947]
[1746456218148,0.3854957,94169.0,94168.0,0.6907947]
[1746456218350,0.5007957,94169.0,94168.0,0.6907947]
[1746456218646,0.5007957,94169.0,94168.0,0.4197]
[1746456218853,0.5007957,94169.0,94168.0,0.6320969]
[1746456219045,0.5097957,94169.0,94168.0,0.6320969]
[1746456219958,0.5097957,94169.0,94168.0,0.65420362]
[1746456222848,0.5097957,94169.0,94168.0,0.44180672]
[1746456223053,0.5097957,94169.0,94168.0,0.08100672]
[1746456224949,0.265508,94164.0,94163.0,0.06856]
[1746456225155,0.2124082,94163.0,94162.0,0.0567]
[1746456225451,0.3930082,94163.0,94162.0,0.0567]
[1746456225655,0.3930082,94163.0,94162.0,0.2691105]
[1746456225844,0.3930082,94163.0,94162.0,0.3269105]
[1746456226048,0.3930082,94163.0,94162.0,0.3954705]
[1746456226247,0.5130082,94163.0,94162.0,0.3269105]
[1746456226459,0.5130082,94163.0,94162.0,0.3954705]
[1746456226759,0.5160082,94163.0,94162.0,0.3954705]
[1746456227558,0.5160082,94163.0,94162.0,0.41755765]
[1746456228455,0.5190082,94163.0,94162.0,0.41755765]
[1746456232854,0.5190082,94163.0,94162.0,0.34899765]
[1746456233054,0.5190082,94163.0,94162.0,0.41755765]
[1746456233861,0.5190082,94163.0,94162.0,0.20514715]
[1746456234255,0.5190082,94163.0,94162.0,0.07878715]
[1746456235063,0.5190082,94163.0,94162.0,0.29119765]
[1746456238563,0.5190082,94163.0,94162.0,0.07878715]
[1746456239762,0.5190082,94163.0,94162.0,0.29119765]
[1746456239962,0.5190082,94163.0,94162.0,0.07878715]
[1746456240363,0.5190082,94163.0,94162.0,0.29119765]
[1746456241972,0.3980082,94163.0,94162.0,0.29119765]
[1746456242565,0.3384082,94163.0,94162.0,0.29119765]
[1746456244351,0.3384082,94163.0,94162.0,0.41169765]
[1746456247567,0.3354082,94163.0,94162.0,0.41169765]
[1746456247865,0.3374082,94163.0,94162.0,0.41169765]
[1746456250973,0.2655633,94146.0,94145.0,0.053112]
[1746456251164,0.2655633,94146.0,94145.0,0.3340408]
[1746456251365,0.2655633,94146.0,94145.0,0.37384663]
[1746456251759,0.2124431,94148.0,94147.0,0.2124421]
[1746456252265,0.3324431,94148.0,94147.0,0.2124421]
[1746456252470,0.3324431,94148.0,94147.0,0.2710421]
[1746456252963,0.3324431,94148.0,94147.0,0.2720421]
[1746456254162,0.0531062,94156.0,94150.0,0.0531088]
[1746456254364,0.2124291,94154.0,94153.0,0.2655334]
[1746456254670,0.2124291,94154.0,94153.0,0.3224334]
[1746456255072,0.3324291,94154.0,94153.0,0.3224334]
[1746456255372,0.3904291,94154.0,94153.0,0.3224334]